bitfinex/quotes_ETHUSD_20240810
["timestamp","ask_amount","ask_price","bid_price","bid_amount"]
[1723286731326,0.00791402,2635.1,2635.0,0.10865179]
[1723286731534,0.00791402,2635.1,2634.7,2.403]
[1723286731691,0.00791402,2635.1,2635.0,2.56905179]
[1723286741014,0.00791402,2635.1,2635.0,6.36411179]
[1723286742651,0.00791402,2635.1,2635.0,6.91411179]
[1723286744340,0.00791402,2635.1,2635.0,2.56905179]
[1723286747571,0.00791402,2635.1,2635.0,4.46658179]
[1723286747863,0.00791402,2635.1,2635.0,3.22949997]
[1723286748245,0.00791402,2635.1,2635.0,5.12702997]
[1723286748967,0.00791402,2635.1,2635.0,5.67702997]
[1723286749170,1.89703,2635.7,2635.1,1.89743]
[1723286749471,1.89703,2635.7,2635.2,0.6748435]
[1723286750268,1.9316477,2635.8,2635.2,0.6748435]
[1723286750430,3.8286577,2635.8,2635.2,0.6748435]
[1723286750868,1.89704,2635.7,2635.2,0.6748435]
[1723286751067,1.89711,2635.6,2635.2,0.6748435]
[1723286752069,3.79427,2635.6,2635.2,0.6748435]
[1723286752384,1.89711,2635.6,2635.2,0.6748435]
[1723286752587,1.89711,2635.6,2635.2,0.1071505]
[1723286752744,1.89711,2635.6,2635.0,4.90792]
[1723286753085,1.89711,2635.6,2635.1,0.10714569]
[1723286753245,1.89721,2635.5,2635.1,0.10714569]
[1723286753445,1.89724,2635.4,2635.1,0.10714569]
[1723286753750,1.89724,2635.4,2634.8,0.2403]
[1723286754079,3.79455,2635.4,2634.8,0.2403]
[1723286754283,1.89724,2635.4,2634.9,0.10731951]
[1723286754671,1.89724,2635.4,2634.9,1.31670846]
[1723286756489,1.89733,2635.3,2634.9,1.31670846]
[1723286756999,1.8974,2635.2,2634.9,1.31670846]
[1723286758817,1.8974,2635.2,2634.9,0.10731951]
[1723286759206,1.8974,2635.2,2634.7,2.3586]
[1723286759377,3.79484,2635.2,2635.0,0.10749553]
[1723286759577,1.89746,2635.1,2634.7,2.3586]
[1723286759811,1.89746,2635.1,2634.8,0.10760822]
[1723286760322,1.89746,2635.1,2634.9,0.1076008]
[1723286760619,1.89712,2635.6,2634.5,1.89788]
[1723286760620,1.89766,2634.9,2634.5,2.3586]
[1723286761845,1.89806,2634.3,2633.9,2.3586]
[1723286761999,1.134,2634.4,2633.3,2.3586]
[1723286762320,1.89846,2633.8,2633.3,2.3586]
[1723286762562,1.89855,2633.6,2633.3,2.3586]
[1723286762683,1.89855,2633.6,2633.0,3.4926]
[1723286762879,1.89855,2633.6,2633.1,0.303295]
[1723286763315,1.89861,2633.5,2633.1,0.303295]
[1723286763699,1.89855,2633.6,2633.1,0.303295]
[1723286764429,1.89869,2633.4,2633.1,0.303295]
[1723286765506,1.89855,2633.6,2633.1,0.303295]
[1723286765823,1.89861,2633.5,2633.1,0.303295]
[1723286766031,3.79716,2633.6,2633.0,2.3586]
[1723286766231,1.89855,2633.6,2632.8,1.89906]
[1723286766646,1.89873,2633.4,2632.7,2.3324]
[1723286766849,1.89873,2633.4,2632.8,0.423163]
[1723286767143,1.89883,2633.2,2632.8,0.423163]
[1723286767447,1.89898,2633.0,2632.4,4.23178]
[1723286767601,1.8989,2633.1,2632.5,1.89932]
[1723286768231,1.89883,2633.2,2632.5,1.89932]
[1723286768428,1.89883,2633.2,2632.6,0.423172]
[1723286768640,1.89894,2633.1,2632.6,0.423172]
[1723286770104,1.89904,2632.9,2632.6,0.423172]
[1723286770305,3.79815,2632.9,2632.4,2.3324]
[1723286770617,1.89912,2632.8,2632.2,3.0]
[1723286770835,1.89912,2632.8,2632.1,4.23196]
[1723286771141,1.89904,2632.9,2632.2,0.4233008]
[1723286771341,1.89904,2632.9,2632.3,1.89947]
[1723286772142,1.89912,2632.8,2632.4,0.09959087]
[1723286772511,1.89912,2632.8,2632.2,2.3228408]
[1723286772709,1.89912,2632.8,2632.5,0.09953442]
[1723286773027,1.89919,2632.7,2632.6,0.10102345]
[1723286773230,1.89912,2632.8,2632.1,2.3324]
[1723286773429,1.89912,2632.8,2632.1,2.7557208]
[1723286773430,1.89929,2632.6,2632.1,2.7557208]
[1723286773760,1.89912,2632.8,2632.1,2.7557208]
[1723286773975,1.89921,2632.7,2632.1,4.6552908]
[1723286774184,1.89921,2632.7,2632.1,0.4233208]
[1723286774336,1.89921,2632.7,2632.2,2.56480288]
[1723286774642,1.89908,2632.9,2632.3,1.89945]
[1723286775563,1.89908,2632.9,2632.3,3.79886]
[1723286776067,1.89893,2633.1,2632.3,1.89941]
[1723286776268,1.89878,2633.3,2632.2,2.56480288]
[1723286776480,1.89884,2633.2,2632.6,2.3324]
[1723286776768,1.89883,2633.2,2632.6,2.3324]
[1723286778330,1.89878,2633.3,2632.6,2.3324]
[1723286778532,1.89878,2633.3,2632.7,2.512255]
[1723286778767,1.89878,2633.3,2632.7,0.613095]
[1723286778967,1.89893,2633.1,2632.7,0.613095]
[1723286781079,1.89878,2633.3,2632.7,0.613095]
[1723286782779,1.89878,2633.3,2632.7,2.512275]
[1723286782992,4.89864,2633.5,2632.8,2.3835775]
[1723286783145,4.89864,2633.5,2632.8,0.4844675]
[1723286784580,4.89864,2633.5,2632.8,0.52746853]
[1723286784736,1.89864,2633.5,2632.9,4.23139]
[1723286784940,1.89864,2633.5,2632.9,2.80828585]
[1723286785152,1.89864,2633.5,2633.0,1.89897]
[1723286785542,3.79702,2633.7,2633.0,1.89897]
[1723286785736,1.89856,2633.6,2633.0,1.89897]
[1723286785954,1.89856,2633.6,2633.1,0.47830953]
[1723286786164,1.8985,2633.7,2633.1,0.47830953]
[1723286786387,1.89834,2633.9,2633.2,2.2754]
[1723286786544,1.89834,2633.9,2633.2,4.17418]
[1723286786886,1.89821,2634.1,2633.3,0.07593876]
[1723286787055,1.89834,2633.9,2633.3,2.48809873]
[1723286789366,1.89846,2633.8,2633.3,0.51340997]
[1723286789572,1.89846,2633.8,2633.4,0.278881]
[1723286789883,1.89846,2633.8,2633.5,0.09587916]
[1723286791603,1.89826,2634.0,2633.5,0.09587916]
[1723286791895,1.89814,2634.2,2633.6,2.2754]
[1723286792049,1.89814,2634.2,2633.6,4.91449278]
[1723286792625,3.7963,2634.2,2633.6,4.91449278]
[1723286793085,1.89814,2634.2,2633.6,4.91449278]
[1723286793784,1.89799,2634.4,2633.7,2.2754]
[1723286793987,1.89799,2634.4,2633.8,0.49144528]
[1723286794193,1.89799,2634.4,2633.8,0.58648319]
[1723286795386,1.89803,2634.3,2633.8,0.58648319]
[1723286796275,1.89803,2634.3,2633.9,2.2754]
[1723286796486,1.89803,2634.3,2633.9,2.37038152]
[1723286796677,1.89803,2634.3,2633.9,2.85247301]
[1723286797095,1.8979,2634.5,2633.9,4.75078301]
[1723286797259,1.89779,2634.7,2634.2,2.2754]
[1723286797460,1.89779,2634.7,2634.3,0.22754]
[1723286797659,1.89779,2634.7,2634.3,0.32211278]
[1723286798274,3.80319402,2634.9,2634.3,0.32211278]
[1723286798670,1.90554402,2634.9,2634.3,2.22013278]
[1723286798883,0.00791402,2634.9,2634.4,2.53917854]
[1723286799086,0.00791402,2634.9,2634.5,2.2754]
[1723286799283,0.00791402,2634.9,2634.5,2.36964634]
[1723286799584,0.00791402,2634.9,2634.5,0.09424634]
[1723286799790,1.89782,2634.6,2634.5,0.09424634]
[1723286799984,1.8979,2634.5,2633.9,7.49]
[1723286800217,0.00791402,2634.9,2633.9,3.214237]
[1723286800218,1.89803,2634.3,2633.9,3.214237]
[1723286800510,1.89803,2634.3,2633.9,2.2754]
[1723286801718,1.89823,2634.1,2633.7,2.2754]
[1723286801911,1.89826,2634.0,2633.7,2.2754]
[1723286802420,1.89826,2634.0,2633.8,0.0945677]
[1723286802915,1.89826,2634.0,2633.9,0.09479218]
[1723286803221,1.89826,2634.0,2633.7,2.2754]
[1723286803423,1.89826,2634.0,2633.9,0.09479218]
[1723286803887,1.89826,2634.0,2633.7,2.2754]
[1723286804232,1.89826,2634.0,2633.9,0.09479218]
[1723286804378,1.89826,2634.0,2633.8,0.09484857]
[1723286804700,1.89826,2634.0,2633.9,0.09479218]
[1723286804906,1.89826,2634.0,2633.5,8.46654]
[1723286805203,1.89826,2634.0,2633.9,0.09479831]
[1723286805412,1.89826,2634.0,2633.5,8.46654]
[1723286805581,1.89826,2634.0,2633.9,0.09483495]
[1723286805783,3.79646,2634.1,2633.5,8.46654]
[1723286806093,3.79646,2634.1,2633.5,2.87513]
[1723286806406,1.89826,2634.0,2633.6,0.09501023]
[1723286806793,1.89826,2634.0,2633.4,1.89868]
[1723286806993,1.89826,2634.0,2633.7,0.09495384]
[1723286807192,1.89826,2634.0,2633.4,1.89868]
[1723286807382,1.89823,2634.1,2633.8,0.09489745]
[1723286807588,1.89823,2634.1,2633.6,2.263]
[1723286807796,1.89805,2634.3,2633.9,0.09484106]
[1723286808001,1.89805,2634.3,2633.7,1.89845]
[1723286808215,1.89805,2634.3,2634.0,0.09474803]
[1723286808523,1.89811,2634.2,2634.1,0.09469165]
[1723286808691,1.89811,2634.2,2633.7,0.6477348]
[1723286808899,1.89811,2634.2,2634.1,0.09469165]
[1723286809074,1.89811,2634.2,2633.7,0.6477348]
[1723286809286,1.89811,2634.2,2634.1,0.09469165]
[1723286809481,1.89811,2634.2,2633.6,6.05998]
[1723286809482,1.89811,2634.2,2633.6,4.16149]
[1723286809677,6.15977,2634.2,2634.1,0.09469165]
[1723286809882,1.89832,2633.9,2633.6,2.263]
[1723286810319,1.89818,2634.1,2633.6,2.263]
[1723286810888,1.89811,2634.2,2633.6,4.16153]
[1723286811095,1.89811,2634.2,2633.6,4.767544]
[1723286812029,1.89819,2634.1,2633.6,2.869014]
[1723286814027,1.89807,2634.3,2633.7,1.89846]
[1723286814217,1.89807,2634.3,2633.8,2.7397474]
[1723286815642,1.89792,2634.5,2633.8,2.7397474]
[1723286815938,1.89778,2634.7,2633.8,2.7397474]
[1723286815939,1.89778,2634.7,2634.1,4.16111]
[1723286816117,1.89795,2634.5,2634.1,2.263]
[1723286816493,1.89796,2634.4,2634.1,2.263]
[1723286817242,1.89796,2634.4,2634.2,0.09437267]
[1723286818134,1.89783,2634.6,2634.2,0.09437267]
[1723286821345,1.8977,2634.8,2634.2,0.09437267]
[1723286821636,1.90551402,2634.9,2634.3,4.16101]
[1723286821843,0.00791402,2634.9,2634.3,4.16101]
[1723286822015,0.00791402,2634.9,2634.4,0.09419277]
[1723286822600,1.89779,2634.7,2634.4,0.09419277]
[1723286823345,1.89789,2634.5,2634.0,2.263]
[1723286823637,1.89789,2634.5,2634.1,0.09429473]
[1723286825446,0.00791402,2634.9,2634.5,1.89783]
[1723286825607,0.00791402,2634.9,2634.6,4.27371]
[1723286825943,0.00791402,2634.9,2634.6,4.36774121]
[1723286826132,0.00791402,2634.9,2634.7,0.62655712]
[1723286826304,0.00791402,2634.9,2634.8,0.0937659]
[1723286826505,0.00791402,2634.9,2634.7,4.42196712]
[1723286826710,0.00791402,2634.9,2634.8,2.4696659]
[1723286826907,0.00791402,2634.9,2634.8,4.44323672]
[1723286827110,0.00791402,2634.9,2634.8,7.0376561]
[1723286828771,0.00791402,2634.9,2634.8,3.16641528]
[1723286829052,0.00791402,2634.9,2634.8,0.0937659]
[1723286829416,0.00791402,2634.9,2634.5,7.27377]
[1723286829940,0.00791402,2634.9,2634.6,0.09308507]
[1723286830372,0.00791402,2634.9,2634.6,3.88866507]
[1723286830762,0.00791402,2634.9,2634.6,1.99085507]
[1723286830963,0.00791402,2634.9,2634.7,0.43667551]
[1723286831287,0.00791402,2634.9,2634.8,4.36654237]
[1723286831472,0.00791402,2634.9,2634.8,4.44244072]
[1723286832180,0.00791402,2634.9,2634.8,2.46887237]
[1723286843863,0.00791402,2634.9,2634.8,0.09297237]
[1723286844197,0.00791402,2634.9,2634.7,2.33436551]
[1723286844387,0.00791402,2634.9,2634.8,0.0928442]
[1723286844778,0.00791402,2634.9,2634.7,2.33436551]
[1723286844980,0.00791402,2634.9,2634.8,0.0928442]
[1723286845512,0.00791402,2634.9,2634.8,0.24272097]
[1723286845797,0.00791402,2634.9,2634.8,2.23323517]
[1723286846969,0.00791402,2634.9,2634.8,0.33556517]
[1723286847671,0.00791402,2634.9,2634.8,6.3396842]
[1723286848093,0.00791402,2634.9,2634.8,4.4420142]
[1723286854288,0.00791402,2634.9,2634.8,6.3396842]
[1723286854625,1.8972,2635.5,2634.9,1.89756]
[1723286854980,1.8972,2635.5,2635.0,0.0925912]
[1723286855492,1.8971,2635.6,2635.0,2.62400332]
[1723286855690,3.79414,2635.7,2635.0,4.52147332]
[1723286855893,3.79414,2635.7,2635.1,0.56554733]
[1723286856325,3.79414,2635.7,2635.2,0.09244193]
[1723286857314,1.8971,2635.6,2635.2,0.09244193]
[1723286859491,1.89706,2635.7,2635.2,0.09244193]
[1723286859691,1.89706,2635.7,2635.2,2.54394193]
[1723286859924,1.89706,2635.7,2635.3,0.50068993]
[1723286860287,1.89706,2635.7,2635.4,0.09232928]
[1723286863200,1.89706,2635.7,2635.2,4.4063618]
[1723286863403,1.89706,2635.7,2635.5,0.09227296]
[1723286863619,1.89706,2635.7,2635.2,4.4063618]
[1723286863825,1.89706,2635.7,2635.6,0.09221665]
[1723286863985,1.89706,2635.7,2635.2,5.20669971]
[1723286864191,1.89706,2635.7,2635.3,0.0923856]
[1723286864393,1.89706,2635.7,2635.2,5.14920791]
[1723286864631,1.89706,2635.7,2635.3,0.0923856]
[1723286865001,1.89706,2635.7,2635.2,5.14920791]
[1723286865232,1.89706,2635.7,2635.4,0.09232928]
[1723286865526,1.89706,2635.7,2635.5,0.09227296]
[1723286865732,1.89706,2635.7,2635.2,5.14920791]
[1723286865931,1.89706,2635.7,2635.3,0.09225137]
[1723286866234,1.89706,2635.7,2635.2,5.14920791]
[1723286866398,1.89706,2635.7,2635.4,0.09219504]
[1723286866606,1.89706,2635.7,2635.2,5.14920791]
[1723286866607,1.89706,2635.7,2635.3,0.09225137]
[1723286866794,1.89706,2635.7,2635.5,0.09213873]
[1723286866995,1.89706,2635.7,2635.2,4.34887]
[1723286867229,1.89706,2635.7,2635.6,0.09208241]
[1723286867387,1.89706,2635.7,2635.2,4.34887]
[1723286867588,1.89706,2635.7,2635.3,0.09225137]
[1723286867788,1.89706,2635.7,2635.2,4.34887]
[1723286867993,1.89706,2635.7,2635.3,0.09225137]
[1723286868193,1.89706,2635.7,2635.2,4.34887]
[1723286868390,1.89706,2635.7,2635.4,0.09219504]
[1723286868640,1.89706,2635.7,2635.2,4.34887]
[1723286868792,1.89706,2635.7,2635.5,0.09213873]
[1723286868992,1.89706,2635.7,2635.2,4.34887]
[1723286869188,0.00791402,2635.5,2635.3,0.09225137]
[1723286869430,0.00791402,2635.5,2635.2,4.34887]
[1723286869640,3.80230402,2635.5,2635.4,0.09219504]
[1723286869931,1.89732,2635.3,2634.8,1.89763]
[1723286870306,1.89732,2635.3,2634.9,0.0924767]
[1723286870702,4.28749402,2635.5,2634.9,0.0924767]
[1723286870903,1.89724,2635.4,2634.9,0.0924767]
[1723286871545,1.89724,2635.4,2634.9,1.9900567]
[1723286871848,1.89724,2635.4,2634.9,2.68198737]
[1723286874457,2.39031402,2635.5,2634.9,2.68198737]
[1723286874646,2.39031402,2635.5,2635.0,2.2611]
[1723286875153,0.00791402,2635.5,2635.1,0.09236403]
[1723286875518,1.90509402,2635.5,2635.1,0.09236403]
[1723286876133,1.90512402,2635.5,2635.1,0.09236403]
[1723286876432,1.89738,2635.2,2635.1,0.09236403]
[1723286876827,1.89738,2635.2,2634.7,2.2611]
[1723286877031,1.89738,2635.2,2635.1,0.09045786]
[1723286877544,1.89738,2635.2,2634.7,2.2611]
[1723286877858,1.89738,2635.2,2634.8,0.09062687]
[1723286878220,1.89738,2635.2,2634.7,4.029176]
[1723286878419,4.27972,2635.3,2634.9,0.09057053]
[1723286878618,6.17708,2635.3,2634.8,0.09062687]
[1723286878857,4.27972,2635.3,2634.8,0.09062687]
[1723286879061,1.89732,2635.3,2634.7,5.926876]
[1723286879365,1.89732,2635.3,2634.8,3.18421131]
[1723286879720,1.89732,2635.3,2634.8,4.31821131]
[1723286880357,1.90510402,2635.5,2634.9,4.15865]
[1723286880558,1.90510402,2635.5,2635.0,0.09056903]
[1723286881246,1.90510402,2635.5,2635.0,1.98807903]
[1723286881456,1.90510402,2635.5,2635.0,2.83574989]
[1723286882052,1.89725,2635.4,2635.0,0.93823989]
[1723286882365,1.89725,2635.4,2635.0,0.09056903]
[1723286886969,1.90510402,2635.5,2635.0,0.09056903]
[1723286887974,1.89724,2635.4,2635.0,0.09056903]
[1723286894546,1.89745,2635.2,2635.0,0.09056903]
[1723286894948,1.89746,2635.1,2635.0,0.09056903]
[1723286895152,1.89746,2635.1,2634.7,2.2846]
[1723286895361,1.89746,2635.1,2635.0,0.09039845]
[1723286895551,1.89746,2635.1,2634.7,2.2846]
[1723286895746,1.89746,2635.1,2635.0,0.09039845]
[1723286895969,1.89745,2635.2,2634.7,2.2846]
[1723286896148,1.89745,2635.2,2635.0,0.09039845]
[1723286896362,1.89745,2635.2,2634.7,2.2846]
[1723286896564,1.89745,2635.2,2635.1,0.09034212]
[1723286896764,1.89745,2635.2,2634.7,2.2846]
[1723286896942,1.89745,2635.2,2635.1,0.09034212]
[1723286897139,1.89745,2635.2,2634.7,2.2846]
[1723286897340,4.7141044,2635.4,2635.1,0.09034212]
[1723286897570,1.89735,2635.3,2634.7,4.18233]
[1723286897790,1.89735,2635.3,2634.8,0.09051114]
[1723286897978,1.89735,2635.3,2634.7,3.755014]
[1723286898136,1.89735,2635.3,2634.8,0.09051114]
[1723286898342,1.89735,2635.3,2634.7,3.755014]
[1723286898555,1.89735,2635.3,2634.8,0.09051114]
[1723286898843,1.89735,2635.3,2634.7,5.652754]
[1723286899043,1.89735,2635.3,2634.9,0.09045479]
[1723286899359,1.89735,2635.3,2635.0,0.09039845]
[1723286899672,1.89735,2635.3,2634.7,4.18234]
[1723286899878,1.89735,2635.3,2635.1,0.09034212]
[1723286900188,1.89746,2635.1,2634.7,2.2846]
[1723286904447,1.8974,2635.2,2634.7,2.2846]
[1723286905086,3.79484,2635.2,2634.7,2.2846]
[1723286905678,1.8974,2635.2,2634.7,2.2846]
[1723286905881,3.79483,2635.2,2634.7,2.2846]
[1723286906052,1.8974,2635.2,2634.7,2.2846]
[1723286907050,1.8974,2635.2,2634.8,0.09059641]
[1723286907397,1.8974,2635.2,2634.7,2.2846]
[1723286907558,1.8974,2635.2,2634.8,0.09059641]
[1723286907751,1.8974,2635.2,2634.7,2.2846]
[1723286907966,1.8974,2635.2,2634.8,0.09059641]
[1723286908253,1.8974,2635.2,2634.7,2.2846]
[1723286908587,1.8974,2635.2,2634.8,0.09059641]
[1723286908785,1.8974,2635.2,2634.7,2.2846]
[1723286908988,1.8974,2635.2,2634.8,0.09059641]
[1723286909191,1.8974,2635.2,2634.7,2.2846]
[1723286909374,1.8974,2635.2,2634.8,0.09059641]
[1723286909581,1.8974,2635.2,2634.7,2.2846]
[1723286909769,1.8974,2635.2,2634.8,0.09059641]
[1723286909965,1.8974,2635.2,2634.7,2.2846]
[1723286910301,1.8974,2635.2,2634.8,0.09059641]
[1723286910669,1.8974,2635.2,2634.7,2.2846]
[1723286910979,1.8974,2635.2,2634.8,0.09059641]
[1723286911183,1.8974,2635.2,2634.7,4.18234]
[1723286911356,1.8974,2635.2,2634.8,0.09059641]
[1723286911565,1.8974,2635.2,2634.7,3.006013]
[1723286911765,1.8974,2635.2,2634.8,0.09059641]
[1723286912012,1.8974,2635.2,2634.7,3.006013]
[1723286912302,1.8974,2635.2,2634.8,0.09059641]
[1723286912600,1.8974,2635.2,2634.7,3.006013]
[1723286912778,1.8974,2635.2,2634.8,0.09059641]
[1723286912977,1.8974,2635.2,2634.7,3.006013]
[1723286913299,1.8974,2635.2,2634.8,0.09065125]
[1723286913599,1.8974,2635.2,2634.7,3.006013]
[1723286913898,1.8974,2635.2,2634.8,0.09065125]
[1723286914207,1.8974,2635.2,2634.7,3.006013]
[1723286914399,1.89727,2635.4,2634.8,0.09065125]
[1723286914598,1.89727,2635.4,2634.9,4.24489]
[1723286914762,0.00791402,2635.5,2635.1,2.3473]
[1723286915096,0.00791402,2635.5,2635.2,0.0904259]
[1723286919280,1.90512402,2635.5,2635.2,0.0904259]
[1723286919481,1.89725,2635.4,2635.2,0.0904259]
[1723286919681,1.89731,2635.3,2635.2,0.0904259]
[1723286920109,1.89731,2635.3,2634.9,2.3473]
[1723286920624,1.89731,2635.3,2635.0,0.09053856]
[1723286924740,1.89725,2635.4,2635.0,0.09053856]
[1723286926014,1.89746,2635.1,2635.0,0.09053856]
[1723286926205,1.89754,2635.0,2634.6,2.4791]
[1723286926401,1.89754,2635.0,2634.7,0.09069543]
[1723286927112,1.89762,2634.9,2634.7,0.09069543]
[1723286927323,1.89767,2634.8,2634.7,0.09069543]
[1723286927531,3.03167,2634.8,2634.7,0.09069543]
[1723286927705,3.03167,2634.8,2634.2,7.49]
[1723286927706,1.89789,2634.5,2634.2,7.49]
[1723286927904,1.89789,2634.5,2634.0,2.4791]
[1723286928104,1.89789,2634.5,2634.0,3.030236]
[1723286928539,1.89789,2634.6,2634.0,3.030236]
[1723286928741,0.00791402,2634.3,2634.0,3.030236]
[1723286930947,0.00791402,2634.3,2634.2,2.4791]
[1723286931118,0.00791402,2634.3,2634.2,1.8981]
[1723286931311,0.00791402,2634.3,2634.2,4.3772]
[1723286933340,0.00791402,2634.3,2634.2,6.2753]
[1723286933545,0.00791402,2634.3,2634.2,13.41072305]
[1723286933743,0.00791402,2634.3,2634.2,16.1421948]
[1723286934342,0.00791402,2634.3,2634.2,14.2116141]
[1723286934520,0.00791402,2634.3,2634.2,13.55493034]
[1723286935325,0.00791402,2634.3,2634.2,13.5549339]
[1723286936733,0.00791402,2634.3,2634.2,13.55495494]
[1723286937251,0.00791402,2634.3,2634.2,13.64331011]
[1723286937746,0.00791402,2634.3,2634.2,13.64329926]
[1723286938116,0.00791402,2634.3,2634.2,13.64329902]
[1723286938721,0.00791402,2634.3,2634.2,15.57389821]
[1723286938950,0.00791402,2634.3,2634.2,16.23055939]
[1723286939166,0.00791402,2634.3,2634.2,16.23061585]
[1723286939465,0.00791402,2634.3,2634.2,11.98844316]
[1723286939759,0.00791402,2634.3,2634.2,16.23049637]
[1723286940122,0.00791402,2634.3,2634.2,15.57383179]
[1723286941135,0.00791402,2634.3,2634.2,15.57385496]
[1723286941549,0.00791402,2634.3,2634.2,13.64326108]
[1723286943323,0.00791402,2634.3,2634.2,13.643321]
[1723286943866,0.00791402,2634.3,2634.2,13.6433048]
[1723286948731,0.00791402,2634.3,2634.2,15.57393187]
[1723286948931,0.00791402,2634.3,2634.2,13.64329005]
[1723286949689,0.00791402,2634.3,2634.2,11.98844316]
[1723286950169,0.00791402,2634.3,2634.2,8.01555517]
[1723286950474,0.00791402,2634.3,2634.2,4.98645517]
[1723286950766,0.00791402,2634.3,2634.2,0.08835517]
[1723286951133,1.89815,2634.2,2633.8,1.134]
[1723286952132,4.17339402,2634.3,2633.9,0.08861553]
[1723286952327,4.70413342,2634.3,2633.9,0.08861553]
[1723286952635,2.80605342,2634.3,2633.9,0.08861553]
[1723286952946,2.80605342,2634.3,2633.9,1.134]
[1723286953147,4.70409342,2634.3,2634.0,0.08891205]
[1723286953475,1.89811,2634.2,2634.0,0.08891205]
[1723286953638,4.17335402,2634.3,2634.0,0.08891205]
[1723286953835,4.17335402,2634.3,2633.7,8.624]
[1723286954036,4.17335402,2634.3,2633.8,0.08899439]
[1723286954241,4.17335402,2634.3,2633.7,10.52246]
[1723286954439,4.17335402,2634.3,2633.8,0.08906134]
[1723286954681,4.17335402,2634.3,2633.7,10.52246]
[1723286954978,4.17335402,2634.3,2633.9,0.08900495]
[1723286955271,4.17335402,2634.3,2634.0,0.088979]
[1723286955434,4.17335402,2634.3,2633.7,3.03246]
[1723286955637,4.17335402,2634.3,2633.8,0.08909177]
[1723286955882,6.07144402,2634.3,2633.7,3.03246]
[1723286956083,6.07144402,2634.3,2633.9,0.08903538]
[1723286956246,6.79198842,2634.3,2633.8,0.08906742]
[1723286956580,6.79198842,2634.3,2633.5,4.38828]
[1723286956581,1.89811,2634.2,2633.5,4.38828]
[1723286956765,1.89811,2634.2,2633.9,0.08901104]
[1723286957074,1.89811,2634.2,2634.0,0.08895466]
[1723286957276,1.89818,2634.1,2633.6,1.134]
[1723286957852,2.57730084,2634.2,2633.6,1.134]
[1723286957853,1.89827,2634.0,2633.6,1.134]
[1723286958175,2.2674,2633.9,2633.4,1.134]
[1723286958376,2.2674,2633.9,2633.4,5.73524]
[1723286959579,2.2674,2633.9,2633.4,7.63391]
[1723286960382,2.2674,2633.9,2633.5,1.8986]
[1723286960583,2.2674,2634.1,2633.6,1.89852]
[1723286961064,2.2674,2634.1,2633.5,1.8986]
[1723286962114,2.2674,2634.1,2633.5,1.89856]
[1723286962262,2.2674,2634.1,2633.6,1.89849]
[1723286962901,2.2674,2634.1,2633.6,3.03249]
[1723286964103,4.16558,2634.1,2633.6,1.134]
[1723286964396,2.2674,2634.1,2633.6,1.134]
[1723286964595,2.2674,2634.1,2633.7,1.89846]
[1723286965112,1.89814,2634.2,2633.7,1.89846]
[1723286965442,1.89814,2634.2,2633.7,4.38816]
[1723286967107,1.89814,2634.2,2633.8,0.08957857]
[1723286967603,1.89814,2634.2,2633.7,4.38816]
[1723286967781,1.89814,2634.2,2633.9,0.08952218]
[1723286967976,1.89814,2634.2,2633.8,0.08957857]
[1723286968184,1.89814,2634.2,2633.7,4.38816]
[1723286968185,1.89814,2634.2,2634.0,0.0894658]
[1723286968482,1.89814,2634.2,2634.1,0.08940942]
[1723286968697,2.4427,2634.6,2634.1,1.89815]
[1723286968897,2.4427,2634.6,2634.1,4.32985942]
[1723286969068,1.89779,2634.7,2634.2,0.54638594]
[1723286969278,1.89779,2634.7,2634.3,0.08916887]
[1723286969505,2.4427,2634.8,2634.2,3.0321]
[1723286969826,1.89746,2635.1,2634.6,1.134]
[1723286970121,1.89746,2635.1,2634.7,0.08894343]
[1723286971419,1.89736,2635.3,2634.7,0.08894343]
[1723286972025,1.89745,2635.2,2634.7,0.08894343]
[1723286973719,0.00791402,2635.0,2634.7,0.08894343]
[1723286974829,1.90544402,2635.0,2634.7,0.08894343]
[1723286975422,0.00791402,2635.0,2634.7,0.08894343]
[1723286978286,1.90544402,2635.0,2634.7,0.08894343]
[1723286978484,0.38820542,2635.0,2634.7,0.08894343]
[1723286978719,1.89764,2634.9,2634.4,1.134]
[1723286978918,1.89764,2634.9,2634.8,0.0878211]
[1723286979104,1.89764,2634.9,2634.4,1.134]
[1723286979399,1.89764,2634.9,2634.8,0.0878211]
[1723286979723,2.56024354,2634.9,2634.8,0.0878211]
[1723286980027,2.56024354,2634.9,2634.4,1.134]
[1723286980203,1.89764,2634.9,2634.8,0.0878211]
[1723286980533,1.89764,2634.9,2634.4,1.134]
[1723286980732,1.89764,2634.9,2634.8,0.0878211]
[1723286981028,1.89764,2634.9,2634.4,3.03196]
[1723286981228,1.89764,2634.9,2634.8,0.0878211]
[1723286981434,2.56024354,2634.9,2634.4,3.03196]
[1723286981633,1.89764,2634.9,2634.8,0.0878211]
[1723286981811,1.89764,2634.9,2634.2,2.3423]
[1723286981812,1.89764,2634.9,2634.3,3.03202]
[1723286982137,1.89769,2634.8,2634.3,4.508269]
[1723286982440,1.89769,2634.8,2634.4,0.08804652]
[1723286983110,1.8976,2634.9,2634.4,0.08804652]
[1723286985151,1.8976,2634.9,2634.5,2.3423]
[1723286985645,1.8976,2634.9,2634.6,0.08531719]
[1723286985847,2.31593654,2634.9,2634.6,0.08531719]
[1723286987435,1.89768,2634.8,2634.6,0.08531719]
[1723286991530,1.89774,2634.7,2634.6,0.08531719]
[1723286991961,1.89768,2634.8,2634.6,0.08531719]
[1723286992469,3.79541,2634.8,2634.6,0.08531719]
[1723286992633,2.4712752,2634.8,2634.6,0.08531719]
[1723286995660,4.3689952,2634.8,2634.6,0.08531719]
[1723286996173,2.4712752,2634.8,2634.6,0.08531719]
[1723286998369,1.89768,2634.8,2634.6,0.08531719]
[1723287000199,2.28577542,2635.0,2634.6,0.08531719]
[1723287000516,0.00791402,2635.0,2634.6,0.08531719]
[1723287001385,0.00791402,2635.0,2634.7,3.4855]
[1723287001565,0.00791402,2635.0,2634.7,3.0317]
[1723287001900,0.00791402,2635.0,2634.8,2.74852766]
[1723287003594,0.00791402,2635.0,2634.8,2.43682594]
[1723287004496,1.90548402,2635.0,2634.8,0.08532594]
[1723287004669,3.80306402,2635.0,2634.5,2.3515]